fUST/lending_fUST_20251212
["ID","MTS","AMOUNT","RATE_DAILY","PERIOD"]
[398307401,1765522247501,-1000.0,0.00013821,2]
[398307402,1765522247511,-1000.0,0.00013821,2]
[398307403,1765522247520,-328.66868074,0.0001389,2]
[398307404,1765522247530,-163.17055612,0.00013973,2]
[398307405,1765522247540,-500.0,0.00013973,2]
[398307406,1765522247549,-594.3889428,0.00013973,2]
[398307407,1765522247559,-597.0407023,0.00013973,2]
[398307408,1765522247568,-597.2446838,0.00013973,2]
[398307409,1765522247578,-597.2446838,0.00013973,2]
[398307410,1765522247587,-597.2446838,0.00013973,2]
[398307411,1765522247598,-597.2446838,0.00013973,2]
[398307412,1765522247607,-922.3356852,0.00013973,2]
[398307413,1765522247616,-594.703066,0.00013973,2]
[398307414,1765522247625,-500.0,0.00013973,2]
[398307415,1765522247634,-265.23804352,0.00014082,3]
[398307416,1765522247644,-255.0,0.00014198,2]
[398307417,1765522247654,-713.97283296,0.00014198,2]
[398307418,1765522247663,-600.0,0.00014221,2]
[398307419,1765522247673,-397.715535,0.00014247,2]
[398307420,1765522247682,-397.715535,0.00014247,2]
[398307421,1765522247692,-397.715535,0.00014247,2]
[398307422,1765522247702,-397.715535,0.00014247,2]
[398307423,1765522247711,-397.715535,0.00014247,2]
[398307424,1765522247721,-397.1162519,0.00014247,2]
[398307425,1765522247730,-500.0,0.00014247,2]
[398307426,1765522247739,-1000.0,0.00014247,2]
[398307427,1765522247749,-1000.0,0.00014247,2]
[398307428,1765522247758,-1000.0,0.00014247,2]
[398307429,1765522247768,-643.50795874,0.00014247,2]
[398307430,1765522247777,-1135.9137877,0.00014247,2]
[398307431,1765522247786,-1000.0,0.00014247,2]
[398307432,1765522247796,-1000.0,0.00014247,2]
[398307433,1765522247805,-1000.0,0.00014247,2]
[398307434,1765522247815,-1000.0,0.00014247,2]
[398307435,1765522247824,-374.81526525,0.00014247,2]
[398307436,1765522247833,-1000.0,0.00014247,2]
[398307437,1765522247843,-1090.68363868,0.00014247,2]
[398307438,1765522247852,-1000.0,0.00014247,2]
[398307439,1765522247861,-1000.0,0.00014247,2]
[398307440,1765522247870,-1000.0,0.00014247,2]
[398307441,1765522247879,-572.58241802,0.00014247,2]
[398307442,1765522247888,-1000.0,0.00014247,2]
[398307443,1765522247898,-1000.0,0.00014247,2]
[398307444,1765522247907,-562.18605952,0.00014247,2]
[398307445,1765522247917,-1000.0,0.00014247,2]
[398307446,1765522247926,-1000.0,0.00014247,2]
[398307447,1765522247935,-1000.0,0.00014247,2]
[398307448,1765522247944,-1000.0,0.00014247,2]
[398307449,1765522247954,-1000.0,0.00014247,2]
[398307450,1765522247963,-1000.0,0.00014247,2]
[398307451,1765522247972,-1000.0,0.00014247,2]
[398307452,1765522247981,-1000.0,0.00014247,2]
[398307453,1765522247991,-967.76641208,0.00014247,2]
[398307454,1765522248000,-1000.0,0.00014247,2]
[398307455,1765522248010,-1000.0,0.00014247,2]
[398307456,1765522248020,-402.02084691,0.00014247,2]
[398307457,1765522248029,-1000.0,0.00014247,2]
[398307458,1765522248039,-1000.0,0.00014247,2]
[398307459,1765522248049,-1000.0,0.00014247,2]
[398307460,1765522248059,-1000.0,0.00014247,2]
[398307461,1765522248068,-281.74427044,0.00014247,2]
[398307462,1765522248079,-1000.0,0.00014247,2]
[398307463,1765522248088,-1000.0,0.00014247,2]
[398307464,1765522248099,-1000.0,0.00014247,2]
[398307465,1765522248109,-787.41560507,0.00014247,2]
[398307466,1765522248118,-1000.0,0.00014247,2]
[398307467,1765522248128,-500.0,0.00014247,2]
[398307468,1765522248138,-260.0,0.00014247,2]
[398307469,1765522248148,-1500.0,0.00014368,2]
[398307470,1765522248157,-1648.12972489,0.00014368,2]
[398307471,1765522248167,-526.14405521,0.00014368,2]
[398307472,1765522248176,-1500.0,0.00014368,2]
[398307473,1765522248186,-1500.0,0.00014368,2]
[398307474,1765522248195,-1500.0,0.00014368,2]
[398307475,1765522248204,-1500.0,0.00014368,2]
[398307476,1765522248214,-1500.0,0.00014368,2]
[398307477,1765522248224,-1500.0,0.00014368,2]
[398307478,1765522248233,-340.27515161,0.00014368,2]
[398307479,1765522248244,-1500.0,0.00014368,2]
[398307480,1765522248253,-1500.0,0.00014368,2]
[398307481,1765522248263,-1500.0,0.00014368,2]
[398307482,1765522248272,-1500.0,0.00014368,2]
[398307483,1765522248282,-1500.0,0.00014368,2]
[398307484,1765522248291,-1500.0,0.00014368,2]
[398307485,1765522248300,-1500.0,0.00014368,2]
[398307486,1765522248310,-417.26712002,0.00014368,2]
[398307487,1765522248319,-1500.0,0.00014368,2]
[398307488,1765522248328,-1500.0,0.00014368,2]
[398307489,1765522248338,-1500.0,0.00014368,2]
[398307490,1765522248347,-1500.0,0.00014368,2]
[398307491,1765522248356,-1500.0,0.00014368,2]
[398307492,1765522248366,-1500.0,0.00014368,2]
[398307493,1765522248375,-1500.0,0.00014368,2]
[398307494,1765522248385,-2600.0,0.00014482,2]
[398307495,1765522248398,-500.0,0.00014521,2]
[398307496,1765522248412,-500.0,0.00014521,2]
[398307497,1765522248423,-1000.0,0.00014661,2]
[398307498,1765522248432,-600.0,0.00014728,2]
[398307499,1765522248443,-405.0,0.00014746,2]
[398307500,1765522248452,-740.38982778,0.00014746,2]
[398307501,1765522248461,-900.0,0.00014768,2]
[398307502,1765522248471,-500.0,0.00014795,2]
[398307503,1765522248480,-1500.0,0.00014795,2]
[398307504,1765522248489,-1019.05511874,0.00014795,2]
[398307505,1765522248498,-1500.0,0.00014795,2]
[398307506,1765522248508,-1500.0,0.00014795,2]
[398307507,1765522248517,-1500.0,0.00014795,2]
[398307508,1765522248527,-1500.0,0.00014795,2]
[398307509,1765522248537,-1150.8061872,0.00014795,2]
[398307510,1765522248547,-1500.0,0.00014795,2]
[398307511,1765522248556,-1500.0,0.00014795,2]
[398307512,1765522248566,-1500.0,0.00014795,2]
[398307513,1765522248575,-1191.38630321,0.00014795,2]
[398307514,1765522248585,-1500.0,0.00014795,2]
[398307515,1765522248594,-953.6568715,0.00014795,2]
[398307516,1765522248604,-1500.0,0.00014795,2]
[398307517,1765522248614,-767.24253086,0.00014795,2]
[398307518,1765522248623,-284.09403884,0.00014795,2]
[398307519,1765522248632,-368.16361925,0.00014795,2]
[398307520,1765522248641,-801.77160815,0.00014795,2]
[398307521,1765522248651,-903.5096,0.00014795,2]
[398307522,1765522248660,-1500.0,0.00014795,2]
[398307523,1765522248670,-1500.0,0.00014795,2]
[398307524,1765522248681,-996.88675893,0.00014795,2]
[398307525,1765522248691,-1500.0,0.00014795,2]
[398307526,1765522248701,-1500.0,0.00014795,2]
[398307527,1765522248711,-1500.0,0.00014795,2]
[398307528,1765522248720,-1407.21339915,0.00014795,2]
[398307529,1765522248730,-1500.0,0.00014795,2]
[398307530,1765522248739,-1500.0,0.00014795,2]
[398307531,1765522248749,-1500.0,0.00014795,2]
[398307532,1765522248759,-1500.0,0.00014795,2]
[398307533,1765522248768,-1500.0,0.00014795,2]
[398307534,1765522248778,-500.0,0.00014795,2]
[398307535,1765522248787,-360.0,0.00014795,2]
[398307536,1765522248797,-422.48478634,0.000148,2]
[398307537,1765522248807,-600.0,0.00014882,2]
[398307538,1765522248817,-466.59838283,0.00014916,2]
[398307539,1765522248826,-2000.0,0.00014916,2]
[398307540,1765522248836,-2000.0,0.00014916,2]
[398307541,1765522248845,-2000.0,0.00014916,2]
[398307542,1765522248855,-2000.0,0.00014916,2]
[398307543,1765522248865,-1200.44225906,0.00014916,2]
[398307544,1765522248874,-1500.0,0.00014916,2]
[398307545,1765522248885,-2056.61454339,0.00014916,2]
[398307546,1765522248895,-1033.09506622,0.00014916,2]
[398307547,1765522248904,-2000.0,0.00014916,2]
[398307548,1765522248913,-2000.0,0.00014916,2]
[398307549,1765522248923,-2000.0,0.00014916,2]
[398307550,1765522248932,-1276.83025382,0.00014916,2]
[398307551,1765522248942,-2000.0,0.00014916,2]
[398307552,1765522248952,-2000.0,0.00014916,2]
[398307553,1765522248962,-2000.0,0.00014916,2]
[398307554,1765522248971,-168.17158996,0.00014916,2]
[398307555,1765522248981,-498.29288736,0.00014916,2]
[398307556,1765522248990,-2000.0,0.00014916,2]
[398307557,1765522248999,-734.81131868,0.00014916,2]
[398307558,1765522249009,-2000.0,0.00014916,2]
[398307559,1765522249019,-1360.0,0.00014972,2]
[398307560,1765522249029,-631.0,0.00014972,2]
[398307561,1765522249039,-2156.0,0.00014972,2]
[398307562,1765522249050,-415.0,0.00014972,2]
[398307563,1765522249060,-100000.0,0.0001499,2]
[398307564,1765522249070,-500.78419919,0.00015,2]
[398307565,1765522249079,-639.26643493,0.00015,2]
[398307566,1765522249089,-641.0,0.00015,2]
[398307567,1765522249099,-430.0,0.00015,2]
[398307568,1765522249109,-601.55779423,0.00015035,2]
[398307569,1765522249118,-500.0,0.00015068,2]
[398307570,1765522249128,-780.663367,0.00015068,2]
[398307571,1765522249137,-283.21932206,0.00015068,2]
[398307572,1765522249146,-800.0,0.00015068,2]
[398307573,1765522249156,-500.0,0.00015069,2]
[398307574,1765522249165,-686.3498,0.00015265,2]
[398307575,1765522249174,-767.7842514,0.00015294,2]
[398307576,1765522249184,-1200.0,0.00015316,2]
[398307577,1765522249193,-460.0,0.00015342,2]
[398307578,1765522249203,-500.0,0.00015342,2]
[398307579,1765522249213,-2000.0,0.00015342,2]
[398307580,1765522249222,-500.0,0.00015342,2]
[398307581,1765522249232,-2000.0,0.00015342,2]
[398307582,1765522249242,-1112.74526678,0.00015342,2]
[398307583,1765522249251,-1569.28452497,0.00015342,2]
[398307584,1765522249261,-2000.0,0.00015342,2]
[398307585,1765522249271,-521.52568945,0.00015342,2]
[398307586,1765522249281,-2000.0,0.00015342,2]
[398307587,1765522249291,-2000.0,0.00015342,2]
[398307588,1765522249301,-2000.0,0.00015342,2]
[398307589,1765522249310,-2000.0,0.00015342,2]
[398307590,1765522249320,-1621.46341295,0.00015342,2]
[398307591,1765522249331,-2000.0,0.00015342,2]
[398307592,1765522249340,-2000.0,0.00015342,2]
[398307593,1765522249349,-932.59065784,0.00015342,2]
[398307594,1765522249359,-2000.0,0.00015342,2]
[398307595,1765522249368,-1204.01655414,0.00015342,2]
[398307596,1765522249378,-2000.0,0.00015342,2]
[398307597,1765522249387,-2000.0,0.00015342,2]
[398307598,1765522249401,-2000.0,0.00015342,2]
[398307599,1765522249410,-500.0,0.00015343,2]
[398307600,1765522249420,-2500.0,0.00015464,2]
[398307601,1765522249431,-2500.0,0.00015464,2]
[398307602,1765522249441,-2500.0,0.00015464,2]
[398307603,1765522249451,-2500.0,0.00015464,2]
[398307604,1765522249462,-2500.0,0.00015464,2]
[398307605,1765522249471,-2500.0,0.00015464,2]
[398307606,1765522249480,-2500.0,0.00015464,2]
[398307607,1765522249490,-2500.0,0.00015464,2]
[398307608,1765522249500,-2492.68779205,0.00015464,2]
[398307609,1765522249529,-7.31220795,0.00015464,2]
[398307610,1765522249539,-925.86985941,0.00015464,2]
[398307611,1765522249549,-2500.0,0.00015464,2]
[398307612,1765522249561,-2500.0,0.00015464,2]
[398307613,1765522249570,-159.44497712,0.000155,2]
[398307614,1765522249581,-500.0,0.00015616,2]
[398307615,1765522249590,-500.0,0.00015617,2]
[398307616,1765522249600,-209.0,0.00015726,3]
[398307617,1765522249611,-796.19226871,0.00015842,2]
[398307618,1765522249621,-1500.0,0.00015864,2]
[398307619,1765522249631,-16707.81854205,0.0001589,3]
[398307620,1765522249642,-560.0,0.0001589,2]
[398307621,1765522249651,-2500.0,0.0001589,2]
[398307622,1765522249661,-2500.0,0.0001589,2]
[398307623,1765522249671,-2500.0,0.0001589,2]
[398307624,1765522249680,-2171.12624538,0.0001589,2]
[398307625,1765522249689,-2500.0,0.0001589,2]
[398307626,1765522249699,-1264.84055266,0.0001589,2]
[398307627,1765522249710,-1235.15944734,0.0001589,2]
[398307628,1765522249719,-2500.0,0.0001589,2]
[398307629,1765522249728,-2500.0,0.0001589,2]
[398307630,1765522249737,-2500.0,0.0001589,2]
[398307631,1765522249746,-2500.0,0.0001589,2]
[398307632,1765522249755,-884.84055266,0.0001589,2]
[398307633,1765522249767,-621.76485469,0.0001589,2]
[398307634,1765522249776,-438.37450043,0.0001589,2]
[398307635,1765522249820,150.0,6.649e-05,2]
[398307639,1765522311455,150.0,6.706e-05,2]
[398307648,1765522413179,170.92122231,0.00013863,30]
[398307649,1765522668791,-3000.0,0.00037348,120]
[398307650,1765522668819,-221.77870707,0.00037348,120]
[398307651,1765522668845,-500.74432774,0.00037348,31]
[398307652,1765522668872,-1345.92139915,0.00037348,120]
[398307653,1765522668900,-215.71063,0.00037348,60]
[398307654,1765522668924,-428.0,0.00037348,30]
[398307655,1765522668952,-651.19272073,0.00037348,120]
[398307656,1765522668978,-2010.46482782,0.00037348,120]
[398307657,1765522669003,-492.94078706,0.00037348,120]
[398307658,1765522669028,-1126.95662187,0.00037348,120]
[398307659,1765522669051,-286.34621982,0.00037348,120]
[398307660,1765522669076,-2028.30050556,0.00037348,30]
[398307661,1765522669101,-386.80810947,0.00037348,120]
[398307662,1765522669125,-1003.89200771,0.00037348,120]
[398307663,1765522669151,-635.58734105,0.00037348,60]
[398307664,1765522669177,-953.28553627,0.00037348,120]
[398307665,1765522669204,-367.05857858,0.00037348,120]
[398307666,1765522669230,-247.83959189,0.00037348,30]
[398307667,1765522669255,-252.97241615,0.00037348,120]
[398307668,1765522669280,-617.95377441,0.00037348,120]
[398307669,1765522669306,-150.00818626,0.00037348,31]
[398307670,1765522669332,-1071.45537251,0.00037348,30]
[398307671,1765522669363,-459.81192587,0.00037348,30]
[398307672,1765522669388,-240.82074905,0.00037348,120]
[398307673,1765522669414,-251.96238124,0.00037348,120]
[398307674,1765522669440,-1143.34607443,0.00037348,120]
[398307675,1765522669467,-1057.54525089,0.00037348,120]
[398307676,1765522669493,-300.0,0.00037348,120]
[398307677,1765522669522,-577.02935929,0.00037348,120]
[398307678,1765522669548,-200.0,0.00037348,120]
[398307679,1765522669576,-1048.64863213,0.00037348,120]
[398307680,1765522669603,-707.5579038,0.00037348,120]
[398307681,1765522669628,-437.33614674,0.00037348,30]
[398307682,1765522669654,-445.43045976,0.00037348,120]
[398307683,1765522669680,-1992.8145655,0.00037348,120]
[398307684,1765522669706,-1923.28963079,0.00037348,60]
[398307685,1765522669733,-1223.47485821,0.00037348,30]
[398307686,1765522670079,-2228.6390775,0.00037348,120]
[398307687,1765522670109,-543.52477251,0.00037348,120]
[398307688,1765522670134,-224.63054041,0.00037348,120]
[398307689,1765522670159,-329.58172156,0.00037348,120]
[398307690,1765522670186,-566.88886863,0.00037348,120]
[398307691,1765522670214,-2207.61751496,0.00037348,60]
[398307692,1765522670241,-205.80920871,0.00037348,120]
[398307693,1765522670265,-317.67250548,0.00037348,60]
[398307694,1765522670290,-169.02316446,0.00037348,120]
[398307695,1765522670315,-552.5258949,0.00037348,120]
[398307696,1765522670341,-1563.00755303,0.00037348,120]
[398307697,1765522670367,-1719.89227156,0.00037348,30]
[398307698,1765522670391,-626.25419616,0.00037348,120]
[398307699,1765522670416,-184.42804936,0.00037348,30]
[398307700,1765522670440,-318.52705437,0.00037348,120]
[398307701,1765522670465,-367.83165539,0.00037348,120]
[398307702,1765522670490,-357.81695402,0.00037348,120]
[398307703,1765522670517,-1066.00288841,0.00037348,120]
[398307704,1765522670543,-177.48999053,0.00037348,120]
[398307705,1765522670570,-507.80733475,0.00037348,120]
[398307706,1765522670596,-407.43668441,0.00037348,30]
[398307707,1765522670621,-627.331788,0.00037348,120]
[398307708,1765522670647,-477.1379866,0.00037348,120]
[398307709,1765522670673,-162.7365248,0.00037348,120]
[398307710,1765522670698,-2293.14783617,0.00037348,30]
[398307711,1765522670724,-992.42613898,0.00037348,60]
[398307712,1765522670750,-1010.85055378,0.00037348,30]
[398307713,1765522670777,-523.02073981,0.00037348,60]
[398307714,1765522670806,-207.81209416,0.00037348,30]
[398307715,1765522670832,-220.71725037,0.00037348,31]
[398307716,1765522670859,-338.34478753,0.00037348,30]
[398307717,1765522670885,-739.45046704,0.00037348,120]
[398307718,1765522670910,-863.42092021,0.00037348,31]
[398307719,1765522670938,-624.99817254,0.00037348,120]
[398307720,1765522670966,-463.49102725,0.00037348,31]
[398307721,1765522670991,-688.71967354,0.00037348,30]
[398307722,1765522671030,-157.09515333,0.00037348,30]
[398307723,1765522671058,-1000.12597678,0.00037348,120]
[398307724,1765522671087,-2439.67717152,0.00037348,30]
[398307725,1765522671115,-201.37210528,0.00037348,120]
[398307726,1765522671143,-199.999999,0.00037348,120]
[398307727,1765522671172,-500.26171892,0.00037348,120]
[398307728,1765522671202,-300.0,0.00037348,120]
[398307729,1765522671230,-1068.43088,0.00037348,120]
[398307730,1765522671258,-150.0,0.00037348,30]
[398307731,1765522671285,-150.0,0.00037348,30]
[398307732,1765522671312,-284.55630046,0.00037348,30]
[398307733,1765522671339,-499.999999,0.00037348,30]
[398307734,1765522671369,-235.0063857,0.00037348,120]
[398307735,1765522671398,-2733.0,0.00037348,120]
[398307736,1765522671427,-679.8183087,0.00037348,120]
[398307737,1765522671456,-592.0,0.00037348,30]
[398307738,1765522671485,-284.0,0.00037348,120]
[398307739,1765522671514,-1555.1849683,0.00037348,120]
[398307740,1765522671541,-1205.0,0.00037348,31]
[398307741,1765522671569,-450.55158905,0.00037348,30]
[398307742,1765522671596,-3135.0,0.00037348,120]
[398307743,1765522671626,-2316.10489935,0.00037348,120]
[398307744,1765522671653,-271.0379915,0.00037348,30]
[398307745,1765522671681,-835.20274926,0.00037348,30]
[398307746,1765522671708,-164.77233274,0.00037348,60]
[398307747,1765522671735,-164.30322627,0.00037348,120]
[398307748,1765522671761,-150.49014558,0.00037348,30]
[398307749,1765522671789,-2552.45559159,0.00037348,30]
[398307750,1765522671816,-5313.0,0.00037348,30]
[398307751,1765522671843,-8336.62853447,0.00037348,30]
[398307752,1765522671870,-310.63744968,0.00037348,120]
[398307753,1765522671896,-163.64,0.00037348,120]
[398307754,1765522671923,-1000.0,0.00037348,60]
[398307755,1765522671950,-1000.0,0.00037348,60]
[398307756,1765522671976,-1000.0,0.00037348,60]
[398307757,1765522672002,-1000.0,0.00037348,60]
[398307758,1765522672035,-1000.0,0.00037348,60]
[398307759,1765522672062,-1000.0,0.00037348,60]
[398307760,1765522672088,-1000.0,0.00037348,60]
[398307761,1765522672116,-1000.0,0.00037348,60]
[398307762,1765522672145,-1000.0,0.00037348,60]
[398307763,1765522672173,-1000.0,0.00037348,60]
[398307764,1765522672202,-1000.0,0.00037348,60]
[398307765,1765522672232,-1000.0,0.00037348,60]
[398307766,1765522672259,-1000.0,0.00037348,60]
[398307767,1765522672285,-1000.0,0.00037348,60]
[398307768,1765522672312,-1000.0,0.00037348,60]
[398307769,1765522672339,-1000.0,0.00037348,60]
[398307770,1765522672365,-1000.0,0.00037348,60]
[398307771,1765522672392,-1000.0,0.00037348,60]
[398307772,1765522672421,-1000.0,0.00037348,60]
[398307773,1765522672449,-1000.0,0.00037348,60]
[398307774,1765522672476,-1000.0,0.00037348,60]
[398307775,1765522672502,-1000.0,0.00037348,60]
[398307776,1765522672533,-1000.0,0.00037348,60]
[398307777,1765522672561,-1000.0,0.00037348,60]
[398307778,1765522672590,-1000.0,0.00037348,60]
[398307779,1765522672618,-1000.0,0.00037348,60]
[398307780,1765522672644,-977.83920297,0.00037348,60]
[398307781,1765522672670,-500.02,0.00037348,60]
[398307782,1765522672894,-1039.64610989,0.00037348,120]
[398307783,1765522672958,-3221.82704994,0.00037348,30]
[398307784,1765522672983,-12015.6944993,0.00037348,20]
[398307785,1765522673009,-5000.0,0.00037348,120]
[398307786,1765522673034,-1000.0,0.00037348,31]
[398307787,1765522673059,-1000.0,0.00037348,31]
[398307788,1765522673084,-1000.0,0.00037348,31]
[398307789,1765522673110,-916.10840689,0.00037348,31]
[398307790,1765522673135,-1000.0,0.00037348,31]
[398307791,1765522673160,-1000.0,0.00037348,31]
[398307792,1765522673185,-1000.0,0.00037348,31]
[398307793,1765522673212,-1000.0,0.00037348,31]
[398307794,1765522673237,-1000.0,0.00037348,31]
[398307795,1765522673264,-1000.0,0.00037348,31]
[398307796,1765522673291,-612.43030972,0.00037348,31]
[398307797,1765522673318,-4013.21086634,0.00037348,120]
[398307798,1765522673344,-944.59438998,0.00037348,120]
[398307799,1765522673370,-121671.0,0.00037348,120]
[398307800,1765522673397,-2216.0,0.00037348,120]
[398307801,1765522673423,-6894.35321277,0.00037348,120]
[398307802,1765522673449,-10986.16562558,0.00037348,120]
[398307803,1765522673476,-50971.53129307,0.00037348,40]
[398307804,1765522673502,-22298.73553009,0.00037348,120]
[398307805,1765522673533,-295960.14041999,0.00037348,30]
[398307806,1765522673560,-4813.84,0.00037348,120]
[398307807,1765522673586,-4813.84,0.00037348,120]
[398307808,1765522673614,-4813.84,0.00037348,120]
[398307809,1765522673641,-4813.84,0.00037348,120]
[398307810,1765522673668,-4813.84,0.00037348,120]
[398307811,1765522673695,-4813.84,0.00037348,120]
[398307812,1765522673722,-4813.84,0.00037348,120]
[398307813,1765522673750,-4813.84,0.00037348,120]
[398307814,1765522673777,-4813.84,0.00037348,120]
[398307815,1765522673805,-4813.84,0.00037348,120]
[398307816,1765522673833,-4813.84,0.00037348,120]
[398307817,1765522673861,-4813.84,0.00037348,120]
[398307818,1765522673889,-4813.84,0.00037348,120]
[398307819,1765522673915,-4813.84,0.00037348,120]
[398307820,1765522673941,-4813.84,0.00037348,120]
[398307821,1765522673968,-4813.84,0.00037348,120]
[398307822,1765522673995,-4813.84,0.00037348,120]
[398307823,1765522674021,-4813.84,0.00037348,120]
[398307824,1765522674048,-4813.84,0.00037348,120]
[398307825,1765522674074,-4813.84,0.00037348,120]
[398307826,1765522674102,-4813.84,0.00037348,120]
[398307827,1765522674128,-4813.84,0.00037348,120]
[398307828,1765522674156,-4813.84,0.00037348,120]
[398307829,1765522674184,-4813.88,0.00037348,120]
[398307830,1765522674210,-8232.0417206,0.00037348,20]
[398307831,1765522674236,-960.65120478,0.00037348,20]
[398307832,1765522681200,300.0,0.00037348,120]
[398307833,1765522681542,1648.1,0.00037348,20]
[398307834,1765522681693,300.0,0.00037348,120]
[398307835,1765522695081,-188.87954804,0.00016375,21]
[398307836,1765522695122,-188.87954804,0.00017682,26]
[398307837,1765522695151,-1920.79,0.00018,14]
[398307838,1765522695182,-283.21932206,0.00018989,30]
[398307839,1765522695211,-500.0,0.00019,10]
[398307840,1765522695239,-500.0,0.00019,10]
[398307841,1765522695266,-310.63,0.00019,10]
[398307842,1765522695294,-551.19,0.000191,7]
[398307843,1765522695330,-1000.0,0.00019333,10]
[398307844,1765522695361,-791.0,0.00019333,10]
[398307845,1765522695394,-212.5324583,0.00019672,17]
[398307846,1765522695423,-167.51040117,0.00019672,17]
[398307847,1765522695451,-157.43549722,0.00019681,17]
[398307848,1765522695479,-150.0,0.00019707,7]
[398307849,1765522695508,-166.45,0.00019707,7]
[398307850,1765522695543,-167.53723279,0.00019788,17]
[398307851,1765522695573,-231.61,0.0001995,30]
[398307852,1765522695603,-419.84,0.0002,7]
[398307853,1765522695631,-137911.0,0.0002,7]
[398307854,1765522695661,-400.0,0.0002,120]
[398307855,1765522695690,-373.60306704,0.0002,30]
[398307856,1765522695718,-11232.17368198,0.0002,7]
[398307857,1765522695745,-1200.0,0.0002,10]
[398307858,1765522695775,-447.0,0.0002,7]
[398307859,1765522695806,-295.30641892,0.0002,7]
[398307860,1765522695838,-2000.0,0.0002,7]
[398307861,1765522695866,-250.0,0.0002,10]
[398307862,1765522695896,-596.32,0.000201,7]
[398307863,1765522695924,-250.0,0.000201,10]
[398307864,1765522695955,-250.0,0.000202,10]
[398307865,1765522695983,-250.0,0.000203,10]
[398307866,1765522696012,-556.31161055,0.00020302,120]
[398307867,1765522696041,-212.5324583,0.00020344,32]
[398307868,1765522696071,-167.51040117,0.00020344,32]
[398307869,1765522696100,-157.43549722,0.00020362,32]
[398307870,1765522696129,-250.0,0.000204,10]
[398307871,1765522696156,-287.2438452,0.0002045,30]
[398307872,1765522696186,-2000.0,0.000205,7]
[398307873,1765522696214,-250.0,0.000205,10]
[398307874,1765522696244,-167.53723279,0.00020576,32]
[398307875,1765522696273,-295.30641892,0.000206,7]
[398307876,1765522696302,-250.0,0.000206,10]
[398307877,1765522696638,-250.0,0.000207,10]
[398307878,1765522696694,-250.0,0.000208,10]
[398307879,1765522696721,-250.0,0.000209,10]
[398307880,1765522696748,-231.61,0.000209,30]
[398307881,1765522696774,-170.92507815,0.00020907,45]
[398307882,1765522696800,-1554.03663478,0.00021,10]
[398307883,1765522696826,-2000.0,0.00021,7]
[398307884,1765522696852,-250.0,0.00021,10]
[398307885,1765522696880,-212.5324583,0.00021017,48]
[398307886,1765522696907,-167.51040117,0.00021017,48]
[398307887,1765522696936,-157.43549722,0.00021044,48]
[398307888,1765522696962,-250.0,0.000211,10]
[398307889,1765522696989,-295.30641892,0.000212,7]
[398307890,1765522697020,-1000.0,0.00021266,10]
[398307891,1765522697050,-1000.0,0.00021266,10]
[398307892,1765522697081,-167.53723279,0.00021364,48]
[398307893,1765522697113,-319275.19921353,0.000215,7]
[398307894,1765522697147,-2000.0,0.000215,7]
[398307895,1765522697177,-212.5324583,0.00021689,63]
[398307896,1765522697207,-167.51040117,0.00021689,63]
[398307897,1765522697238,-157.43549722,0.00021725,63]
[398307898,1765522697267,-284.87513024,0.00021758,56]
[398307899,1765522697296,-1496.8564447,0.00021918,7]
[398307900,1765522697326,-500.0,0.00021918,120]
[398307901,1765522697363,-500.0,0.00022,120]
[398307902,1765522697393,-2000.0,0.00022,7]
[398307903,1765522697422,-295.30641892,0.00022,10]
[398307904,1765522697451,-167.53723279,0.00022151,63]
[398307905,1765522697481,-151.48,0.000222,60]
[398307906,1765522697511,-212.5324583,0.00022361,79]
[398307907,1765522697544,-167.51040117,0.00022361,79]
[398307908,1765522697576,-157.43549722,0.00022406,79]
[398307909,1765522697606,-2000.0,0.000225,7]
[398307910,1765522697635,-167.53723279,0.00022939,79]
[398307911,1765522697665,-400.0,0.00023,120]